[Event "Early-Titled-Tuesday-Blitz-September-05-2023"]
[Site "Chess.com"]
[Date "2023.09.05"]
[Round "2"]
[White "maurovargas01"]
[Black "Herzog2012"]
[Result "0-1"]
[WhiteElo "1866"]
[BlackElo "2438"]
[TimeControl "180+1"]
[EndTime "8:16:39 PDT"]
[Termination "Herzog2012 won on time"]

1. e4 {[%clk 0:01:36]} 1... c5 {[%clk 0:02:57.6]} 2. Nc3 {[%clk 0:01:35.6]} 2...
Nc6 {[%clk 0:02:57.4]} 3. f4 {[%clk 0:01:36.5]} 3... g6 {[%clk 0:02:56.5]} 4.
Nf3 {[%clk 0:01:37.4]} 4... Bg7 {[%clk 0:02:56.9]} 5. Bb5 {[%clk 0:01:37.3]}
5... Nd4 {[%clk 0:02:56.8]} 6. Nxd4 {[%clk 0:01:35.3]} 6... cxd4 {[%clk
0:02:57.7]} 7. Ne2 {[%clk 0:01:34.3]} 7... a6 {[%clk 0:02:56.3]} 8. Bc4 {[%clk
0:01:31]} 8... d6 {[%clk 0:02:56]} 9. d3 {[%clk 0:01:26]} 9... b5 {[%clk
0:02:50.7]} 10. Bd5 {[%clk 0:01:24.2]} 10... Rb8 {[%clk 0:02:48.8]} 11. O-O
{[%clk 0:01:23.4]} 11... Bb7 {[%clk 0:02:47.7]} 12. Bxb7 {[%clk 0:01:22.2]}
12... Rxb7 {[%clk 0:02:48.6]} 13. Qe1 {[%clk 0:01:22.1]} 13... Nf6 {[%clk
0:02:32.1]} 14. Nxd4 {[%clk 0:01:13.6]} 14... Qb6 {[%clk 0:02:13.9]} 15. c3
{[%clk 0:01:12.6]} 15... Ng4 {[%clk 0:02:10.7]} 16. Kh1 {[%clk 0:01:09.9]} 16...
Bxd4 {[%clk 0:02:08.4]} 17. cxd4 {[%clk 0:01:09.1]} 17... Qxd4 {[%clk
0:02:09.3]} 18. h3 {[%clk 0:01:06]} 18... h5 {[%clk 0:02:08.2]} 19. Rf3 {[%clk
0:00:47.8]} 19... Rc7 {[%clk 0:02:02.2]} 20. Rb1 {[%clk 0:00:44.3]} 20... Rc2
{[%clk 0:01:50.5]} 21. Qf1 {[%clk 0:00:35.9]} 21... Kd7 {[%clk 0:01:39.9]} 22.
f5 {[%clk 0:00:35.7]} 22... gxf5 {[%clk 0:01:37.2]} 23. exf5 {[%clk 0:00:34.3]}
23... Rg8 {[%clk 0:01:25.6]} 24. Rf4 {[%clk 0:00:31.2]} 24... Nf2+ {[%clk
0:01:16.2]} 25. Kh2 {[%clk 0:00:28.3]} 25... Qxd3 {[%clk 0:01:16.3]} 26. Rxf2
{[%clk 0:00:20.3]} 26... Rxf2 {[%clk 0:01:07.9]} 27. Qxf2 {[%clk 0:00:15.2]}
27... Qxb1 {[%clk 0:01:06.7]} 28. Qa7+ {[%clk 0:00:15.2]} 28... Kc6 {[%clk
0:01:05.2]} 29. Qxa6+ {[%clk 0:00:14]} 29... Kd5 {[%clk 0:01:00.4]} 30. Qxb5+
{[%clk 0:00:11.9]} 30... Ke4 {[%clk 0:01:00.9]} 0-1

[Event "Early-Titled-Tuesday-Blitz-September-05-2023"]
[Site "Chess.com"]
[Date "2023.09.05"]
[Round "2"]
[White "Andrei_Skvortsov"]
[Black "MrBad74"]
[Result "1-0"]
[WhiteElo "2645"]
[BlackElo "2348"]
[TimeControl "180+1"]
[EndTime "8:16:43 PDT"]
[Termination "Andrei_Skvortsov won by resignation"]

1. e4 {[%clk 0:03:00.9]} 1... e6 {[%clk 0:03:00.1]} 2. d4 {[%clk 0:03:00.6]}
2... d5 {[%clk 0:03:00.7]} 3. exd5 {[%clk 0:03:01.5]} 3... exd5 {[%clk
0:03:00.3]} 4. Nf3 {[%clk 0:03:02.4]} 4... Nf6 {[%clk 0:02:59.5]} 5. Bd3 {[%clk
0:03:02.7]} 5... Be7 {[%clk 0:02:55.4]} 6. O-O {[%clk 0:03:02.2]} 6... O-O
{[%clk 0:02:55.5]} 7. Ne5 {[%clk 0:03:02.8]} 7... c6 {[%clk 0:02:53.4]} 8. Nd2
{[%clk 0:03:01.9]} 8... Nbd7 {[%clk 0:02:45.7]} 9. Ndf3 {[%clk 0:03:01.9]} 9...
Nxe5 {[%clk 0:02:32.9]} 10. Nxe5 {[%clk 0:03:01.4]} 10... Be6 {[%clk 0:02:31.9]}
11. c3 {[%clk 0:02:59.7]} 11... h6 {[%clk 0:02:25.9]} 12. f4 {[%clk 0:02:57.3]}
12... Ne4 {[%clk 0:02:21.1]} 13. f5 {[%clk 0:02:56.6]} 13... Bc8 {[%clk
0:02:20.9]} 14. Qg4 {[%clk 0:02:38.2]} 14... Nf6 {[%clk 0:02:02.1]} 15. Qg3
{[%clk 0:02:30.6]} 15... Kh8 {[%clk 0:02:01.8]} 16. a4 {[%clk 0:02:24.8]} 16...
c5 {[%clk 0:02:00.9]} 17. Be3 {[%clk 0:02:23.4]} 17... c4 {[%clk 0:01:51]} 18.
Bc2 {[%clk 0:02:22.4]} 18... Bd6 {[%clk 0:01:48.5]} 19. Qh3 {[%clk 0:02:19.8]}
19... Kh7 {[%clk 0:01:47.5]} 20. g4 {[%clk 0:02:19.3]} 20... Ne4 {[%clk
0:01:41.9]} 21. f6 {[%clk 0:02:13.4]} 21... gxf6 {[%clk 0:00:20.6]} 22. Bxh6
{[%clk 0:02:01.1]} 22... Rh8 {[%clk 0:00:18.9]} 23. Nxf7 {[%clk 0:01:58.2]}
23... Qe8 {[%clk 0:00:18.9]} 24. Nxh8 {[%clk 0:00:36.3]} 24... Kxh8 {[%clk
0:00:15.2]} 25. Bxe4 {[%clk 0:00:35.2]} 25... dxe4 {[%clk 0:00:13.5]} 26. Bf8+
{[%clk 0:00:34.9]} 26... Kg8 {[%clk 0:00:10.2]} 27. Bxd6 {[%clk 0:00:35.3]}
27... Qg6 {[%clk 0:00:10.8]} 28. Qh5 {[%clk 0:00:32.7]} 1-0

[Event "Early-Titled-Tuesday-Blitz-September-05-2023"]
[Site "Chess.com"]
[Date "2023.09.05"]
[Round "2"]
[White "whitemirrorninja"]
[Black "suspiciumchess"]
[Result "1-0"]
[WhiteElo "2498"]
[BlackElo "2262"]
[TimeControl "180+1"]
[EndTime "8:16:45 PDT"]
[Termination "whitemirrorninja won on time"]

1. d4 {[%clk 0:03:00.9]} 1... d5 {[%clk 0:02:56.1]} 2. Nc3 {[%clk 0:03:00.5]}
2... Nf6 {[%clk 0:02:54.8]} 3. Bf4 {[%clk 0:03:00.5]} 3... a6 {[%clk 0:02:55]}
4. e3 {[%clk 0:03:00.6]} 4... Bf5 {[%clk 0:02:52]} 5. Nf3 {[%clk 0:02:59.3]}
5... e6 {[%clk 0:02:52.2]} 6. Ne5 {[%clk 0:02:59.5]} 6... h6 {[%clk 0:02:46.8]}
7. g4 {[%clk 0:02:57.7]} 7... Bh7 {[%clk 0:02:45.4]} 8. h4 {[%clk 0:02:57.1]}
8... Nfd7 {[%clk 0:02:35.7]} 9. g5 {[%clk 0:02:52.6]} 9... Nxe5 {[%clk
0:02:31.9]} 10. Bxe5 {[%clk 0:02:52]} 10... Nd7 {[%clk 0:02:23.1]} 11. Bf4
{[%clk 0:02:43.2]} 11... Be7 {[%clk 0:02:13.9]} 12. gxh6 {[%clk 0:02:41.8]}
12... gxh6 {[%clk 0:02:14.8]} 13. Bxh6 {[%clk 0:02:37.4]} 13... Bg6 {[%clk
0:02:10.2]} 14. Bf4 {[%clk 0:02:32.3]} 14... Rxh4 {[%clk 0:02:09.6]} 15. Rxh4
{[%clk 0:02:32]} 15... Bxh4 {[%clk 0:02:10.4]} 16. Qg4 {[%clk 0:02:30.9]} 16...
Qf6 {[%clk 0:01:35.7]} 17. O-O-O {[%clk 0:02:07]} 17... O-O-O {[%clk 0:01:33.6]}
18. Bd3 {[%clk 0:02:02.7]} 18... Bxd3 {[%clk 0:01:24.4]} 19. cxd3 {[%clk
0:02:03.6]} 19... Qe7 {[%clk 0:00:56.9]} 20. Kb1 {[%clk 0:01:52.4]} 20... Bf6
{[%clk 0:00:52.3]} 21. Rc1 {[%clk 0:01:51.2]} 21... Nb6 {[%clk 0:00:21.4]} 22.
Bxc7 {[%clk 0:01:43.7]} 22... Qxc7 {[%clk 0:00:11.9]} 23. Ne2 {[%clk 0:01:26.5]}
23... Nc4 {[%clk 0:00:11.1]} 24. dxc4 {[%clk 0:01:27]} 24... dxc4 {[%clk
0:00:12]} 25. Qf3 {[%clk 0:01:27.5]} 25... Bg7 {[%clk 0:00:05.6]} 26. b3 {[%clk
0:01:27.5]} 26... Kb8 {[%clk 0:00:04.2]} 27. Rxc4 {[%clk 0:01:27]} 27... Qd7
{[%clk 0:00:03.9]} 28. Qg3+ {[%clk 0:01:24.1]} 28... Ka8 {[%clk 0:00:02.4]} 29.
Qxg7 {[%clk 0:01:24.6]} 29... Qd5 {[%clk 0:00:02.3]} 30. Qxf7 {[%clk 0:01:16.8]}
30... Qe4+ {[%clk 0:00:02]} 31. Kb2 {[%clk 0:01:17.4]} 31... Rh8 {[%clk
0:00:02]} 32. Rc2 {[%clk 0:01:13.2]} 32... Rh1 {[%clk 0:00:02.1]} 33. Qf8+
{[%clk 0:01:11]} 33... Ka7 {[%clk 0:00:02.7]} 34. Qc5+ {[%clk 0:01:10.6]} 34...
Ka8 {[%clk 0:00:03.4]} 35. Qc8+ {[%clk 0:01:10.3]} 35... Ka7 {[%clk 0:00:04.1]}
36. Ng3 {[%clk 0:01:09.5]} 1-0

[Event "Early-Titled-Tuesday-Blitz-September-05-2023"]
[Site "Chess.com"]
[Date "2023.09.05"]
[Round "2"]
[White "brunoo2003"]
[Black "yuki_chess123"]
[Result "1-0"]
[WhiteElo "2450"]
[BlackElo "2106"]
[TimeControl "180+1"]
[EndTime "8:16:45 PDT"]
[Termination "brunoo2003 won on time"]

1. e4 {[%clk 0:02:54.6]} 1... c5 {[%clk 0:02:59.3]} 2. Nf3 {[%clk 0:02:54.3]}
2... Nc6 {[%clk 0:02:58.8]} 3. d4 {[%clk 0:02:54.6]} 3... cxd4 {[%clk
0:02:59.2]} 4. Nxd4 {[%clk 0:02:55.5]} 4... Nf6 {[%clk 0:02:59.2]} 5. Nc3 {[%clk
0:02:55.9]} 5... d6 {[%clk 0:02:59.6]} 6. Bc4 {[%clk 0:02:54.4]} 6... Bd7 {[%clk
0:02:39.9]} 7. O-O {[%clk 0:02:53.7]} 7... Rc8 {[%clk 0:02:35.7]} 8. Bb3 {[%clk
0:02:53.5]} 8... a6 {[%clk 0:02:24.6]} 9. f3 {[%clk 0:02:50.8]} 9... g6 {[%clk
0:02:20.6]} 10. Be3 {[%clk 0:02:50.8]} 10... Bg7 {[%clk 0:02:19.4]} 11. Qd2
{[%clk 0:02:51]} 11... O-O {[%clk 0:02:17.7]} 12. a3 {[%clk 0:02:50.3]} 12...
Ne5 {[%clk 0:02:12.7]} 13. Nd5 {[%clk 0:02:47.8]} 13... Nc4 {[%clk 0:02:04.1]}
14. Bxc4 {[%clk 0:02:47.8]} 14... Rxc4 {[%clk 0:02:04.5]} 15. c3 {[%clk
0:02:43.6]} 15... Nxd5 {[%clk 0:01:41.1]} 16. exd5 {[%clk 0:02:44.5]} 16... Rc5
{[%clk 0:01:41.7]} 17. Ne2 {[%clk 0:02:29.5]} 17... Rc8 {[%clk 0:01:30.3]} 18.
Rad1 {[%clk 0:02:15.7]} 18... Bb5 {[%clk 0:01:28.9]} 19. Rfe1 {[%clk 0:02:14.3]}
19... Bc4 {[%clk 0:01:28.4]} 20. Bg5 {[%clk 0:02:07.9]} 20... Bb3 {[%clk
0:01:25.7]} 21. Rc1 {[%clk 0:02:07.4]} 21... Re8 {[%clk 0:01:20.7]} 22. Nd4
{[%clk 0:02:07.5]} 22... Bxd5 {[%clk 0:01:18.6]} 23. Nf5 {[%clk 0:02:02.6]}
23... gxf5 {[%clk 0:01:03.4]} 24. Qxd5 {[%clk 0:02:02.4]} 24... Qb6+ {[%clk
0:00:49.4]} 25. Kh1 {[%clk 0:01:59.5]} 25... e6 {[%clk 0:00:46.5]} 26. Qd2
{[%clk 0:01:58]} 26... d5 {[%clk 0:00:45.4]} 27. Be3 {[%clk 0:01:56.1]} 27...
Qc7 {[%clk 0:00:37.4]} 28. Rcd1 {[%clk 0:01:56.2]} 28... Qe7 {[%clk 0:00:34.6]}
29. Bd4 {[%clk 0:01:56.5]} 29... Bxd4 {[%clk 0:00:31.4]} 30. Qxd4 {[%clk
0:01:56.8]} 30... Qc5 {[%clk 0:00:31.4]} 31. Qd2 {[%clk 0:01:54.7]} 31... Kh8
{[%clk 0:00:28.9]} 32. Qf4 {[%clk 0:01:52]} 32... Qc7 {[%clk 0:00:27.4]} 33. Qh4
{[%clk 0:01:50.3]} 33... Qe7 {[%clk 0:00:27]} 34. Qd4+ {[%clk 0:01:48.5]} 34...
Kg8 {[%clk 0:00:22.8]} 35. Rg1 {[%clk 0:01:45.9]} 35... Rc4 {[%clk 0:00:20]} 36.
Qe5 {[%clk 0:01:43.7]} 36... Qc7 {[%clk 0:00:15.2]} 37. Qe3 {[%clk 0:01:41.5]}
37... Qc5 {[%clk 0:00:14.2]} 38. Qg5+ {[%clk 0:01:39.3]} 38... Kh8 {[%clk
0:00:14.5]} 39. Qf6+ {[%clk 0:01:39.3]} 39... Kg8 {[%clk 0:00:14.7]} 40. Qg5+
{[%clk 0:01:39.7]} 40... Kh8 {[%clk 0:00:15]} 41. Qf6+ {[%clk 0:01:35.1]} 41...
Kg8 {[%clk 0:00:14.9]} 42. g4 {[%clk 0:01:33.6]} 42... f4 {[%clk 0:00:13.6]} 43.
Rd4 {[%clk 0:01:28.3]} 43... Rxd4 {[%clk 0:00:12.6]} 44. cxd4 {[%clk 0:01:28.1]}
44... Qc7 {[%clk 0:00:12.7]} 45. Re1 {[%clk 0:01:23.1]} 45... Qc2 {[%clk
0:00:02.1]} 46. Re5 {[%clk 0:01:16.1]} 1-0

[Event "Early-Titled-Tuesday-Blitz-September-05-2023"]
[Site "Chess.com"]
[Date "2023.09.05"]
[Round "2"]
[White "DKmirl"]
[Black "Willychess95"]
[Result "0-1"]
[WhiteElo "2266"]
[BlackElo "2711"]
[TimeControl "180+1"]
[EndTime "8:16:47 PDT"]
[Termination "Willychess95 won on time"]

1. d4 {[%clk 0:03:00.9]} 1... Nf6 {[%clk 0:02:54.1]} 2. Nf3 {[%clk 0:03:01]}
2... e6 {[%clk 0:02:53.7]} 3. g3 {[%clk 0:03:01.3]} 3... b5 {[%clk 0:02:53.2]}
4. Bg2 {[%clk 0:03:00.1]} 4... Bb7 {[%clk 0:02:53.3]} 5. O-O {[%clk 0:02:59.4]}
5... Be7 {[%clk 0:02:52.8]} 6. a4 {[%clk 0:02:57.2]} 6... b4 {[%clk 0:02:52.5]}
7. c3 {[%clk 0:02:57.1]} 7... a5 {[%clk 0:02:52.1]} 8. b3 {[%clk 0:02:44.6]}
8... bxc3 {[%clk 0:02:48.8]} 9. Nxc3 {[%clk 0:02:44.4]} 9... Na6 {[%clk
0:02:49.3]} 10. Bf4 {[%clk 0:02:28.9]} 10... O-O {[%clk 0:02:40.3]} 11. Ne5
{[%clk 0:02:24]} 11... Bxg2 {[%clk 0:02:38.1]} 12. Kxg2 {[%clk 0:02:24.5]} 12...
Nb4 {[%clk 0:02:34.3]} 13. Nd3 {[%clk 0:02:13.3]} 13... Qc8 {[%clk 0:02:18]} 14.
Kg1 {[%clk 0:01:55.5]} 14... Qb7 {[%clk 0:02:11.8]} 15. Nc5 {[%clk 0:01:18.9]}
15... Qb6 {[%clk 0:01:51.9]} 16. Nb5 {[%clk 0:00:46.9]} 16... d6 {[%clk
0:01:41.5]} 17. Nd3 {[%clk 0:00:45.8]} 17... Nfd5 {[%clk 0:01:38.8]} 18. e4
{[%clk 0:00:28.8]} 18... Nxd3 {[%clk 0:01:34.9]} 19. Qxd3 {[%clk 0:00:20.9]}
19... Nxf4 {[%clk 0:01:34.2]} 20. gxf4 {[%clk 0:00:21.8]} 20... c6 {[%clk
0:01:31.7]} 21. Na3 {[%clk 0:00:21.3]} 21... d5 {[%clk 0:01:31.9]} 22. e5 {[%clk
0:00:19.3]} 22... f6 {[%clk 0:01:24.4]} 23. Kh1 {[%clk 0:00:18.3]} 23... fxe5
{[%clk 0:01:24.2]} 24. fxe5 {[%clk 0:00:17.3]} 24... Rf4 {[%clk 0:01:21.2]} 25.
Nc2 {[%clk 0:00:15.5]} 25... Raf8 {[%clk 0:01:19.2]} 26. f3 {[%clk 0:00:15.1]}
26... c5 {[%clk 0:01:15.2]} 27. Rad1 {[%clk 0:00:13.7]} 27... Rb8 {[%clk
0:01:05.4]} 28. Rb1 {[%clk 0:00:11.5]} 28... cxd4 {[%clk 0:01:00.8]} 29. Qd2
{[%clk 0:00:09.3]} 29... Rbf8 {[%clk 0:00:59.1]} 30. b4 {[%clk 0:00:06.6]} 30...
axb4 {[%clk 0:00:57.2]} 31. Nxb4 {[%clk 0:00:06.8]} 31... Qc7 {[%clk 0:00:56.9]}
32. Nd3 {[%clk 0:00:03.5]} 32... Rxf3 {[%clk 0:00:54.6]} 33. Rxf3 {[%clk
0:00:03]} 33... Rxf3 {[%clk 0:00:55.3]} 34. Rf1 {[%clk 0:00:02.5]} 34... Rxf1+
{[%clk 0:00:53.8]} 35. Kg2 {[%clk 0:00:02.3]} 35... Rf8 {[%clk 0:00:53.8]} 0-1

[Event "Early-Titled-Tuesday-Blitz-September-05-2023"]
[Site "Chess.com"]
[Date "2023.09.05"]
[Round "2"]
[White "whiteglovethief"]
[Black "Daniel_Salinas"]
[Result "1-0"]
[WhiteElo "2515"]
[BlackElo "2317"]
[TimeControl "180+1"]
[EndTime "8:16:50 PDT"]
[Termination "whiteglovethief won by resignation"]

1. d4 {[%clk 0:03:00.9]} 1... Nf6 {[%clk 0:02:58]} 2. c4 {[%clk 0:03:00.1]} 2...
e6 {[%clk 0:02:58.2]} 3. Nf3 {[%clk 0:02:59.2]} 3... Bb4+ {[%clk 0:02:57.8]} 4.
Bd2 {[%clk 0:02:58]} 4... Qe7 {[%clk 0:02:58.1]} 5. g3 {[%clk 0:02:58]} 5... O-O
{[%clk 0:02:54.2]} 6. Bg2 {[%clk 0:02:57.3]} 6... Nc6 {[%clk 0:02:50.3]} 7. O-O
{[%clk 0:02:53.8]} 7... Bxd2 {[%clk 0:02:45.5]} 8. Qxd2 {[%clk 0:02:54.7]} 8...
d6 {[%clk 0:02:40.2]} 9. Nc3 {[%clk 0:02:54.6]} 9... e5 {[%clk 0:02:39.2]} 10.
Nd5 {[%clk 0:02:55.2]} 10... Qd8 {[%clk 0:01:54.7]} 11. Rfd1 {[%clk 0:02:52.3]}
11... Bf5 {[%clk 0:01:20.7]} 12. dxe5 {[%clk 0:02:49.5]} 12... dxe5 {[%clk
0:01:20]} 13. Qg5 {[%clk 0:02:42.2]} 13... Be4 {[%clk 0:00:44.1]} 14. Nxe5
{[%clk 0:02:12.7]} 14... Bxg2 {[%clk 0:00:42.7]} 15. Nxc6 {[%clk 0:02:11.8]}
15... bxc6 {[%clk 0:00:30.3]} 16. Nxf6+ {[%clk 0:02:05.3]} 16... Qxf6 {[%clk
0:00:31.2]} 17. Qxf6 {[%clk 0:02:05]} 17... gxf6 {[%clk 0:00:32.1]} 18. Kxg2
{[%clk 0:02:05.2]} 18... Rfd8 {[%clk 0:00:33]} 19. e3 {[%clk 0:02:02.8]} 19...
Kf8 {[%clk 0:00:30.3]} 20. Kf3 {[%clk 0:02:03.2]} 20... Ke7 {[%clk 0:00:30.4]}
21. Ke2 {[%clk 0:02:02.2]} 21... Ke6 {[%clk 0:00:30.8]} 22. Rxd8 {[%clk
0:02:01.4]} 22... Rxd8 {[%clk 0:00:31.7]} 23. Rd1 {[%clk 0:02:01.1]} 23... Rb8
{[%clk 0:00:32.5]} 24. b3 {[%clk 0:02:01.6]} 24... a5 {[%clk 0:00:33.2]} 25. Kd2
{[%clk 0:01:58.9]} 25... a4 {[%clk 0:00:31.9]} 26. Kc3 {[%clk 0:01:58.9]} 26...
axb3 {[%clk 0:00:32.4]} 27. axb3 {[%clk 0:01:59.2]} 27... Ra8 {[%clk 0:00:33.1]}
28. Kb2 {[%clk 0:01:58.8]} 28... c5 {[%clk 0:00:26.5]} 29. Ra1 {[%clk
0:01:55.7]} 29... Rd8 {[%clk 0:00:26.2]} 30. Kc2 {[%clk 0:01:53.8]} 30... Ke5
{[%clk 0:00:24.3]} 31. f3 {[%clk 0:01:53.6]} 31... Rb8 {[%clk 0:00:21.6]} 32.
Rd1 {[%clk 0:01:51.1]} 32... c6 {[%clk 0:00:15.4]} 33. Rd7 {[%clk 0:01:48.5]}
33... Ke6 {[%clk 0:00:15.7]} 34. Rc7 {[%clk 0:01:47.5]} 34... Rb6 {[%clk
0:00:16.5]} 35. Kc3 {[%clk 0:01:45.9]} 35... Ra6 {[%clk 0:00:16.6]} 36. Kb2
{[%clk 0:01:43.7]} 36... Rb6 {[%clk 0:00:16.5]} 37. Ra7 {[%clk 0:01:41.2]} 37...
Rb8 {[%clk 0:00:13.5]} 38. Rc7 {[%clk 0:01:41]} 38... Rb6 {[%clk 0:00:13.6]} 39.
Rc8 {[%clk 0:01:41.2]} 39... Ra6 {[%clk 0:00:13.7]} 40. Rh8 {[%clk 0:01:37]}
40... Ra7 {[%clk 0:00:14.2]} 41. Rxh7 {[%clk 0:01:36]} 41... Rd7 {[%clk
0:00:14.9]} 42. Kc2 {[%clk 0:01:35.8]} 42... Ra7 {[%clk 0:00:15.6]} 43. Kb2
{[%clk 0:01:29.3]} 43... Rd7 {[%clk 0:00:15.8]} 44. Rh5 {[%clk 0:01:28.5]} 44...
Rd2+ {[%clk 0:00:15]} 45. Ka3 {[%clk 0:01:26.2]} 45... Kd6 {[%clk 0:00:08.9]}
46. e4 {[%clk 0:01:23.6]} 46... Rd3 {[%clk 0:00:07]} 47. Rf5 {[%clk 0:01:23]}
47... Ke6 {[%clk 0:00:06.6]} 48. h4 {[%clk 0:01:20.7]} 48... Rd1 {[%clk
0:00:04.6]} 49. Rxc5 {[%clk 0:01:19.9]} 49... Kd6 {[%clk 0:00:04.6]} 50. Rf5
{[%clk 0:01:17.8]} 1-0

[Event "Early-Titled-Tuesday-Blitz-September-05-2023"]
[Site "Chess.com"]
[Date "2023.09.05"]
[Round "2"]
[White "Srisshhhtea"]
[Black "fastestmindalive"]
[Result "0-1"]
[WhiteElo "2409"]
[BlackElo "2722"]
[TimeControl "180+1"]
[EndTime "8:16:54 PDT"]
[Termination "fastestmindalive won by resignation"]

1. e4 {[%clk 0:03:00.9]} 1... c5 {[%clk 0:02:55.5]} 2. Nf3 {[%clk 0:03:00.2]}
2... e6 {[%clk 0:02:55.5]} 3. d4 {[%clk 0:02:57.2]} 3... cxd4 {[%clk 0:02:56.4]}
4. Nxd4 {[%clk 0:02:58.1]} 4... Bc5 {[%clk 0:02:53.1]} 5. Nb3 {[%clk 0:02:54.4]}
5... Bb6 {[%clk 0:02:52.4]} 6. Nc3 {[%clk 0:02:53.3]} 6... Ne7 {[%clk
0:02:50.6]} 7. Be2 {[%clk 0:02:38.3]} 7... O-O {[%clk 0:02:49.5]} 8. O-O {[%clk
0:02:38]} 8... f5 {[%clk 0:02:49.4]} 9. a4 {[%clk 0:02:33.7]} 9... Nbc6 {[%clk
0:02:48.4]} 10. Bg5 {[%clk 0:02:01.4]} 10... h6 {[%clk 0:02:47.2]} 11. Bf4
{[%clk 0:01:59.3]} 11... fxe4 {[%clk 0:02:37.6]} 12. Bd6 {[%clk 0:01:58.1]}
12... e3 {[%clk 0:02:36.8]} 13. fxe3 {[%clk 0:01:51.6]} 13... Bxe3+ {[%clk
0:02:36.7]} 14. Kh1 {[%clk 0:01:52.2]} 14... Rxf1+ {[%clk 0:02:37.1]} 15. Qxf1
{[%clk 0:01:51.9]} 15... Nf5 {[%clk 0:02:37.7]} 16. Ba3 {[%clk 0:01:48.1]} 16...
d5 {[%clk 0:02:26.2]} 17. Bd3 {[%clk 0:01:47.7]} 17... d4 {[%clk 0:01:48.2]} 18.
Ne4 {[%clk 0:01:39.5]} 18... Ne5 {[%clk 0:01:46.4]} 19. Be2 {[%clk 0:00:55.9]}
19... Qh4 {[%clk 0:01:36.1]} 20. Nbc5 {[%clk 0:00:26.6]} 20... b6 {[%clk
0:01:20.9]} 21. g3 {[%clk 0:00:26.5]} 21... Nxg3+ {[%clk 0:01:14.3]} 22. Nxg3
{[%clk 0:00:23.6]} 22... bxc5 {[%clk 0:01:13.3]} 23. Ba6 {[%clk 0:00:18.4]}
23... Bxa6 {[%clk 0:00:58.5]} 24. Qxa6 {[%clk 0:00:19.3]} 24... Ng4 {[%clk
0:00:58.7]} 25. Qxe6+ {[%clk 0:00:18]} 25... Kh8 {[%clk 0:00:58.1]} 26. Nf1
{[%clk 0:00:18]} 26... Rf8 {[%clk 0:00:49.7]} 27. Qd6 {[%clk 0:00:15.9]} 27...
Nf2+ {[%clk 0:00:42.5]} 28. Kg1 {[%clk 0:00:14.7]} 28... Ne4+ {[%clk 0:00:29.4]}
0-1

[Event "Early-Titled-Tuesday-Blitz-September-05-2023"]
[Site "Chess.com"]
[Date "2023.09.05"]
[Round "2"]
[White "TC2304"]
[Black "vladgoncharov"]
[Result "0-1"]
[WhiteElo "2358"]
[BlackElo "2534"]
[TimeControl "180+1"]
[EndTime "8:16:54 PDT"]
[Termination "vladgoncharov won by resignation"]

1. c4 {[%clk 0:03:00.9]} 1... Nf6 {[%clk 0:02:56.2]} 2. Nc3 {[%clk 0:03:01.1]}
2... c5 {[%clk 0:02:54.8]} 3. g3 {[%clk 0:03:01.4]} 3... Nc6 {[%clk 0:02:53.6]}
4. Bg2 {[%clk 0:03:01.8]} 4... g6 {[%clk 0:02:54.2]} 5. e4 {[%clk 0:03:02.4]}
5... Bg7 {[%clk 0:02:53.1]} 6. Nge2 {[%clk 0:03:03.1]} 6... O-O {[%clk
0:02:51.6]} 7. O-O {[%clk 0:03:03.7]} 7... d6 {[%clk 0:02:50.8]} 8. d3 {[%clk
0:03:04.4]} 8... Ne8 {[%clk 0:02:48.1]} 9. h3 {[%clk 0:03:02.3]} 9... Nc7 {[%clk
0:02:47.5]} 10. Be3 {[%clk 0:02:59.8]} 10... Nd4 {[%clk 0:02:46.3]} 11. a3
{[%clk 0:02:54.3]} 11... Rb8 {[%clk 0:02:41.7]} 12. Rb1 {[%clk 0:02:41.6]} 12...
b5 {[%clk 0:02:40.4]} 13. cxb5 {[%clk 0:02:39.4]} 13... Ncxb5 {[%clk 0:02:39.7]}
14. Nxb5 {[%clk 0:02:36.3]} 14... Nxb5 {[%clk 0:02:37.3]} 15. d4 {[%clk
0:02:31.6]} 15... cxd4 {[%clk 0:02:26.5]} 16. Nxd4 {[%clk 0:02:31.5]} 16... Bd7
{[%clk 0:02:15]} 17. Rc1 {[%clk 0:02:18.3]} 17... a5 {[%clk 0:02:09.5]} 18. Qd2
{[%clk 0:02:12.1]} 18... Nxd4 {[%clk 0:01:54.5]} 19. Bxd4 {[%clk 0:02:11.9]}
19... Bxd4 {[%clk 0:01:54.5]} 20. Qxd4 {[%clk 0:02:12.8]} 20... Be6 {[%clk
0:01:49.7]} 21. e5 {[%clk 0:02:04.2]} 21... dxe5 {[%clk 0:01:45.7]} 22. Qxe5
{[%clk 0:02:05.1]} 22... Qb6 {[%clk 0:01:45.5]} 23. h4 {[%clk 0:01:43]} 23...
Qxb2 {[%clk 0:01:42.1]} 24. Qxa5 {[%clk 0:01:42.1]} 24... Rb3 {[%clk 0:01:26.9]}
25. Qc7 {[%clk 0:01:29.8]} 25... Qxa3 {[%clk 0:01:24.2]} 26. Ra1 {[%clk
0:01:25.5]} 26... Qd6 {[%clk 0:01:20.1]} 27. Ra7 {[%clk 0:01:13.3]} 27... Qxc7
{[%clk 0:01:15.8]} 28. Rxc7 {[%clk 0:01:14.2]} 28... Re8 {[%clk 0:01:15.6]} 29.
Ra1 {[%clk 0:01:13.2]} 29... Kf8 {[%clk 0:01:07.8]} 30. Raa7 {[%clk 0:01:09.8]}
30... Rb6 {[%clk 0:00:59.3]} 31. Bf3 {[%clk 0:00:49.5]} 31... h5 {[%clk
0:00:58.7]} 32. Kg2 {[%clk 0:00:44]} 32... Bf5 {[%clk 0:00:58.2]} 33. Bd5 {[%clk
0:00:40.1]} 33... Rd6 {[%clk 0:00:54]} 34. Bf3 {[%clk 0:00:33.9]} 34... f6
{[%clk 0:00:46.4]} 35. Rcb7 {[%clk 0:00:27.5]} 35... Re6 {[%clk 0:00:45.4]} 36.
Rc7 {[%clk 0:00:26.6]} 36... Re5 {[%clk 0:00:45.4]} 37. Rcb7 {[%clk 0:00:26.7]}
37... Rd8 {[%clk 0:00:45.3]} 38. Rc7 {[%clk 0:00:26.1]} 38... Rd2 {[%clk
0:00:44.2]} 39. Ra8+ {[%clk 0:00:26.4]} 39... Kf7 {[%clk 0:00:43.4]} 40. Rca7
{[%clk 0:00:25.7]} 40... Bg4 {[%clk 0:00:42]} 41. Ra2 {[%clk 0:00:25.7]} 41...
Bxf3+ {[%clk 0:00:39.6]} 42. Kxf3 {[%clk 0:00:25.6]} 42... Rf5+ {[%clk 0:00:40]}
43. Kg2 {[%clk 0:00:25.5]} 43... Rfxf2+ {[%clk 0:00:39.7]} 0-1